lending/lending_fUSD_20251111
["ID","MTS","AMOUNT","RATE_DAILY","PERIOD"]
[393593865,1762825968998,605.5,0.00013699,2]
[393593867,1762825988581,10000.01,7.945e-05,2]
[393593868,1762825988603,10000.01,7.945e-05,2]
[393593869,1762825988626,9838.049719,7.945e-05,2]
[393593880,1762826678839,165.0,0.00030137,120]
[393593892,1762826925277,-685.26,0.000238,30]
[393593893,1762826925308,-222.18886466,0.000238,30]
[393593894,1762826925341,-152.22064376,0.000238,30]
[393593895,1762826925372,-150.0,0.000238,30]
[393593896,1762826925404,-150.0,0.000238,30]
[393593897,1762826925435,-152.74635183,0.000238,30]
[393593898,1762826925465,-159.32832111,0.000238,30]
[393593899,1762826925498,-154.58103715,0.000238,30]
[393593900,1762826925528,-150.0,0.00023937,30]
[393593901,1762826925559,-23.67478149,0.00023937,30]
[393593912,1762827032346,-180.04,0.00016339,2]
[393593913,1762827032356,-9583.756897,0.00017098,2]
[393593914,1762827032366,-500.0,0.00017799,2]
[393593915,1762827032376,-500.0,0.00017799,2]
[393593917,1762827032385,-500.0,0.00017799,2]
[393593918,1762827032395,-500.0,0.00017799,2]
[393593919,1762827032404,-500.0,0.00017799,2]
[393593920,1762827032413,-500.0,0.00017799,2]
[393593921,1762827032423,-500.0,0.00017799,2]
[393593922,1762827032432,-500.0,0.00017799,2]
[393593923,1762827032442,-500.0,0.00017799,2]
[393593924,1762827032452,-500.0,0.00017799,2]
[393593925,1762827032461,-500.0,0.00017799,2]
[393593926,1762827032470,-367.73190492,0.00017799,2]
[393593927,1762827032482,-132.26809508,0.00017799,2]
[393593928,1762827032492,-500.0,0.00017799,2]
[393593929,1762827032501,-529.28836674,0.00017799,2]
[393593930,1762827032510,-500.0,0.00017799,2]
[393593931,1762827032520,-500.0,0.00017799,2]
[393593932,1762827032528,-500.0,0.00017799,2]
[393593933,1762827032538,-500.0,0.00017799,2]
[393593934,1762827032548,-335.81,0.00017799,2]
[393593935,1762827032557,-1092.78806522,0.000178,2]
[393593936,1762827032568,-806.96000115,0.000178,2]
[393593937,1762827032579,-3209.65001136,0.000178,2]
[393593938,1762827032596,-151.0,0.00016993,2]
[393593939,1762827032605,-4615.54990409,0.000178,2]
[393593940,1762827032617,-594.58400003,0.000178,2]
[393593941,1762827032628,-488.41,0.000178,2]
[393593942,1762827032639,-2000.0,0.000178,2]
[393593943,1762827032650,-1617.34995375,0.000178,2]
[393593944,1762827032661,-2499.88011157,0.000178,2]
[393593963,1762827038393,-1105.15061631,0.000178,2]
[393593964,1762827038406,-10059.08529237,0.000178,2]
[393593965,1762827038502,-284.71666166,0.000178,2]
[393593975,1762827040488,-154894.80948249,0.000178,2]
[393593976,1762827040498,-11491.31228937,0.00017873,2]
[393593977,1762827040507,-205.03091374,0.00017973,2]
[393593978,1762827040517,-425.41729514,0.00017973,2]
[393593979,1762827040526,-335.81,0.00018073,2]
[393593980,1762827040535,-335.81,0.00018347,2]
[393593981,1762827040546,-335.81,0.00018621,2]
[393593982,1762827040555,-335.818577,0.00018895,2]
[393593983,1762827040564,-605.5,0.00020187,2]
[393593984,1762827040574,-11491.31228929,0.00020286,2]
[393593985,1762827040584,-500.0,0.0002052,2]
[393593986,1762827040594,-1317.0,0.0002052,2]
[393593987,1762827040604,-608.0,0.0002052,2]
[393593988,1762827040613,-3426.0,0.0002052,2]
[393593989,1762827040623,-574.0,0.0002052,2]
[393593990,1762827040632,-820.0,0.0002052,2]
[393593991,1762827040642,-1597.0,0.0002052,2]
[393593992,1762827040651,-813.0,0.0002052,2]
[393593993,1762827040660,-1274.0,0.0002052,2]
[393593994,1762827040670,-2143.0,0.0002052,2]
[393593995,1762827040679,-208.041598,0.000214,2]
[393593996,1762827040688,-180.04,0.00021572,2]
[393593997,1762827040697,-478.20968403,0.00022509,2]
[393593998,1762827040707,-5971.6,0.00022562,2]
[393593999,1762827040716,-150.99,0.00022562,2]
[393594000,1762827040726,-11491.31228929,0.00022698,2]
[393594001,1762827040734,-1317.0,0.0002352,2]
[393594002,1762827040743,-608.0,0.0002352,2]
[393594003,1762827040752,-3426.0,0.0002352,2]
[393594004,1762827040761,-574.0,0.0002352,2]
[393594005,1762827040771,-1597.0,0.0002352,2]
[393594006,1762827040780,-813.0,0.0002352,2]
[393594007,1762827040790,-1274.0,0.0002352,2]
[393594008,1762827040799,-2143.0,0.0002352,2]
[393594009,1762827040809,-152.84108416,0.000238,2]
[393594011,1762827040819,-150.0,0.000238,2]
[393594013,1762827040828,-150.0,0.000238,14]
[393594015,1762827040838,-150.0,0.000238,2]
[393594017,1762827040848,-150.0,0.000238,2]
[393594019,1762827040859,-154.35236817,0.000238,30]
[393594021,1762827040868,-158.8205335,0.000238,30]
[393594023,1762827040878,-126.32521851,0.00023937,30]
[393594025,1762827040887,-150.0,0.00023937,2]
[393594027,1762827040896,-150.0,0.00023937,14]
[393594029,1762827040906,-150.0,0.00023937,30]
[393594031,1762827040915,-150.0,0.00023937,30]
[393594033,1762827040924,-150.0,0.00023937,30]
[393594035,1762827040933,-200.01504894,0.00024074,30]
[393594037,1762827040943,-200.0,0.00024074,30]
[393594039,1762827040952,-205.85170221,0.00024074,2]
[393594041,1762827040962,-200.0,0.00024074,14]
[393594043,1762827040971,-150.0,0.00024074,30]
[393594045,1762827040982,-150.0,0.00024074,30]
[393594047,1762827040995,-200.0,0.00024211,30]
[393594049,1762827041005,-200.0,0.00024211,30]
[393594051,1762827041015,-154.36,0.00024413,2]
[393594053,1762827041025,-500.0,0.00024603,2]
[393594055,1762827041035,-191.4,0.00024658,2]
[393594057,1762827041044,-11491.31228929,0.00025111,2]
[393594059,1762827041054,-150.0,0.0002517,2]
[393594061,1762827041065,-155.06,0.00025373,30]
[393594063,1762827041075,-292.10237061,0.00026025,2]
[393594065,1762827041084,-252.53942123,0.00026025,2]
[393594067,1762827041095,-190.8916381,0.00026025,2]
[393594069,1762827041104,-234.7182452,0.00026025,2]
[393594071,1762827041114,-153.19916796,0.0002642,2]
[393594073,1762827041123,-347.0,0.000265,5]
[393594075,1762827041133,-1317.0,0.0002652,2]
[393594077,1762827041142,-608.0,0.0002652,2]
[393594079,1762827041151,-1847.444,0.0002652,2]
[393594081,1762827041161,-574.0,0.0002652,2]
[393594083,1762827041170,-813.0,0.0002652,2]
[393594085,1762827041179,-1274.0,0.0002652,2]
[393594087,1762827041188,-2143.0,0.0002652,2]
[393594089,1762827041198,-200.0,0.0002654,2]
[393594091,1762827041207,-605.5,0.00026676,2]
[393594093,1762827041216,-155.06,0.00026708,30]
[393594095,1762827041225,-180.04,0.00026805,2]
[393594097,1762827041235,-11491.31228929,0.00027524,2]
[393594099,1762827041244,-1071.87,0.00027787,30]
[393594101,1762827041253,-155.06,0.00028044,30]
[393594103,1762827041263,-875.35,0.00028211,2]
[393594105,1762827041272,-363.0,0.00028266,2]
[393594107,1762827041281,-363.0,0.0002836,2]
[393594108,1762827041291,-2338.0,0.00028385,2]
[393594110,1762827041300,-363.0,0.00028529,2]
[393594112,1762827041309,-198.6749512,0.00028674,2]
[393594113,1762827041319,-2332.0,0.00028767,7]
[393594114,1762827041328,-150.0,0.00028882,2]
[393594115,1762827041337,-363.0,0.00028887,2]
[393594116,1762827041348,-153.19916793,0.00029054,2]
[393594117,1762827041357,-363.0,0.00029083,2]
[393594118,1762827041367,-363.0,0.00029084,2]
[393594119,1762827041376,-363.0,0.00029234,2]
[393594120,1762827041385,-363.0,0.00029293,2]
[393594121,1762827041394,-363.0,0.00029362,2]
[393594122,1762827041404,-1168.846,0.0002952,2]
[393594123,1762827041413,-608.0,0.0002952,2]
[393594125,1762827041422,-574.0,0.0002952,2]
[393594127,1762827041431,-813.0,0.0002952,2]
[393594129,1762827041441,-1274.0,0.0002952,2]
[393594131,1762827041450,-2143.0,0.0002952,2]
[393594133,1762827041463,-363.0,0.00029623,2]
[393594135,1762827041474,-500.0,0.00029699,2]
[393594137,1762827041483,-363.0,0.00029739,2]
[393594139,1762827041492,-363.0,0.00029749,2]
[393594141,1762827041501,-363.0,0.00029889,2]
[393594143,1762827041511,-200.0,0.00029895,2]
[393594145,1762827041521,-11491.31228929,0.00029936,2]
[393594147,1762827041532,-363.0,0.00030084,2]
[393594149,1762827041541,-363.0,0.0003011,2]
[393594151,1762827041550,-1128.0,0.00030137,120]
[393594153,1762827041559,-366.0,0.00030201,2]
[393594155,1762827041569,-363.0,0.00030205,2]
[393594157,1762827041579,-363.0,0.00030218,7]
[393594159,1762827041588,-363.0,0.00030453,2]
[393594161,1762827041599,-5000.0,0.00030598,2]
[393594163,1762827041608,-363.0,0.00030601,2]
[393594165,1762827041618,-363.0,0.0003073,2]
[393594167,1762827041627,-366.0,0.00030811,7]
[393594168,1762827041637,-363.0,0.00030836,2]
[393594170,1762827041647,-300.0,0.00030855,2]
[393594188,1762827041839,-366.0,0.00030878,2]
[393594189,1762827041851,-500.96721206,0.0003114,5]
[393594190,1762827041861,-363.0,0.00031146,2]
[393594191,1762827041870,-2055.78,0.000313,30]
[393594192,1762827041880,-501.19400144,0.00031438,5]
[393594193,1762827041889,-166.66,0.00031524,2]
[393594194,1762827041898,-500.84602624,0.0003161,5]
[393594195,1762827041907,-500.0,0.0003161,5]
[393594196,1762827041916,-153.19916793,0.00031687,2]
[393594197,1762827041926,-434.0,0.00031753,2]
[393594198,1762827041936,-315.15992962,0.00032,120]
[393594199,1762827041945,-177.02177303,0.00032,120]
[393594200,1762827041954,-1322.87332282,0.00032,120]
[393594201,1762827041963,-396.71115315,0.00032,120]
[393594202,1762827041973,-150.0,0.00032038,2]
[393594203,1762827041983,-150.0,0.00032038,2]
[393594204,1762827041995,-150.0,0.00032038,2]
[393594205,1762827042005,-500.0,0.00032038,2]
[393594206,1762827042014,-150.0,0.00032038,2]
[393594207,1762827042023,-150.0,0.00032038,2]
[393594208,1762827042034,-154.63310994,0.00032038,2]
[393594209,1762827042044,-150.0,0.00032038,2]
[393594210,1762827042053,-180.04,0.00032038,2]
[393594211,1762827042063,-1500.0,0.000321,2]
[393594212,1762827042073,-1500.0,0.000321,2]
[393594213,1762827042084,-150.0,0.00032175,2]
[393594214,1762827042093,-150.0,0.00032175,2]
[393594215,1762827042102,-150.0,0.00032175,2]
[393594216,1762827042111,-500.0,0.00032175,2]
[393594217,1762827042120,-150.0,0.00032175,2]
[393594218,1762827042129,-150.0,0.00032175,2]
[393594219,1762827042138,-150.0,0.00032175,2]
[393594220,1762827042147,-1671.73607,0.0003219,2]
[393594221,1762827042156,-150.0,0.00032312,2]
[393594222,1762827042165,-150.0,0.00032312,2]
[393594223,1762827042175,-150.0,0.00032312,2]
[393594224,1762827042184,-250.0,0.00032312,2]
[393594225,1762827042193,-151.42196463,0.00032312,2]
[393594226,1762827042202,-150.0,0.00032312,2]
[393594227,1762827042211,-150.0,0.00032312,2]
[393594228,1762827042220,-11491.31228929,0.00032349,2]
[393594229,1762827042229,-251.96937689,0.00032449,2]
[393594230,1762827042238,-150.0,0.00032449,2]
[393594231,1762827042247,-150.0,0.00032449,2]
[393594232,1762827042256,-155.99056556,0.00032449,2]
[393594233,1762827042266,-204.61057853,0.00032449,2]
[393594234,1762827042275,-506.11341811,0.00032487,2]
[393594235,1762827042284,-150.79113814,0.00032488,2]
[393594236,1762827042293,-152.29667682,0.00032488,2]
[393594237,1762827042302,-152.75970822,0.00032488,2]
[393594238,1762827042312,-164.39397088,0.00032488,2]
[393594239,1762827042321,-152.89675062,0.00032488,2]
[393594240,1762827042330,-151.55105583,0.00032488,2]
[393594241,1762827042339,-155.38594985,0.00032488,2]
[393594242,1762827042349,-150.53798323,0.00032488,2]
[393594243,1762827042359,-205.34981725,0.00032488,2]
[393594244,1762827042368,-155.41224067,0.00032488,2]
[393594245,1762827042378,-153.29168327,0.00032488,2]
[393594246,1762827042387,-150.0,0.00032488,2]
[393594247,1762827042396,-150.0,0.00032488,2]
[393594248,1762827042406,-13004.0438127,0.0003251,3]
[393594249,1762827042415,-236.27829222,0.0003252,2]
[393594250,1762827042424,-259.57137639,0.0003252,2]
[393594251,1762827042433,-608.0,0.0003252,2]
[393594252,1762827042442,-565.117,0.0003252,2]
[393594253,1762827042452,-813.0,0.0003252,2]
[393594254,1762827042461,-1274.0,0.0003252,2]
[393594255,1762827042471,-2143.0,0.0003252,2]
[393594256,1762827042480,-157.79206075,0.00032525,15]
[393594257,1762827042490,-418.492,0.00032545,32]
[393594258,1762827042499,-1526.827,0.00032545,32]
[393594259,1762827042509,-166.66,0.00032564,2]
[393594260,1762827042518,-150.0,0.00032586,2]
[393594261,1762827042528,-164.94975785,0.00032586,2]
[393594262,1762827042538,-150.0,0.00032625,2]
[393594263,1762827042547,-150.0,0.00032625,2]
[393594264,1762827042557,-1500.0,0.000327,2]
[393594265,1762827042566,-1500.0,0.000327,2]
[393594266,1762827042576,-205.45059285,0.00032723,2]
[393594267,1762827042585,-207.84083914,0.00032762,2]
[393594268,1762827042596,-202.20130646,0.00032762,2]
[393594269,1762827042605,-200.0,0.00032811,2]
[393594270,1762827042615,-1071.87,0.00032833,30]
[393594271,1762827042624,-170.0,0.00033,14]
[393594272,1762827042633,-315.15992962,0.00033,120]
[393594273,1762827042643,-177.02177303,0.00033,120]
[393594274,1762827042652,-1322.87332282,0.00033,120]
[393594275,1762827042661,-396.71115315,0.00033,120]
[393594276,1762827042670,-605.5,0.00033165,2]
[393594277,1762827042679,-1671.73607,0.0003319,2]
[393594278,1762827042688,-166.66,0.00033605,2]
[393594279,1762827042698,-315.15992962,0.000339,120]
[393594280,1762827042707,-1322.87332282,0.000339,120]
[393594281,1762827042716,-396.71115315,0.000339,120]
[393594282,1762827042726,-13004.0438127,0.00033986,3]
[393594283,1762827042735,-1671.73608,0.0003419,2]
[393594284,1762827042745,-262.29,0.00034247,120]
[393594285,1762827042754,-153.19916793,0.00034321,2]
[393594286,1762827042763,-166.66,0.00034645,2]
[393594287,1762827042772,-11491.31228929,0.00034762,2]
[393594288,1762827042781,-1500.0,0.000348,2]
[393594289,1762827042790,-1500.0,0.000348,2]
[393594290,1762827042799,-400.0,0.000348,12]
[393594291,1762827042809,-154.36,0.00034815,2]
[393594292,1762827042818,-5000.0,0.000349,30]
[393594293,1762827042828,-800.0,0.000349,12]
[393594294,1762827042837,-150.33339269,0.00034973,5]
[393594295,1762827042847,-500.0,0.0003498,7]
[393594296,1762827042856,-500.0,0.00034989,2]
[393594297,1762827042865,-500.0,0.00034989,2]
[393594298,1762827042875,-13004.0438127,0.0003499,3]
[393594299,1762827042892,-112460.47061388,0.0003499,3]
[393594300,1762827042918,-2932.34298008,0.0003499,3]
[393594301,1762827042929,-2969.27573121,0.0003499,3]
[393594302,1762827042940,-1226.06387895,0.0003499,3]
[393594306,1762827043442,-268.78178008,0.0003489,8]
[393594307,1762827043452,-78107.19594852,0.0003499,3]
[393594308,1762827043496,-253.92,0.0003499,3]
[393594309,1762827043507,-49127.56328836,0.0003499,3]
[393594310,1762827043516,-148977.370127,0.0003499,3]
[393594311,1762827043525,-326.13628105,0.0003499,2]
[393594312,1762827043535,-154.53,0.0003499,2]
[393594313,1762827043544,-500.0,0.00034999,2]
[393594314,1762827043553,-500.0,0.00034999,2]
[393594315,1762827043563,-2026.0,0.00035,5]
[393594316,1762827043572,-331.50713491,0.00035,20]
[393594317,1762827043582,-315.15992962,0.00035,120]
[393594318,1762827043591,-1322.87332282,0.00035,120]
[393594319,1762827043601,-396.71115315,0.00035,120]
[393594320,1762827043610,-600.71790044,0.00035,2]
[393594321,1762827043619,-496918.53708317,0.00035,2]
[393594322,1762827043629,-774.77,0.000351,30]
[393594323,1762827043639,-162.83,0.000351,14]
[393594324,1762827043648,-1671.73607,0.0003519,2]
[393594325,1762827043657,-591.831,0.0003552,2]
[393594326,1762827043668,-547.739,0.0003552,2]
[393594327,1762827043677,-1274.0,0.0003552,2]
[393594328,1762827043687,-2143.0,0.0003552,2]
[393594329,1762827043697,-999.0,0.00035616,120]
[393594330,1762827043706,-166.66,0.00035686,2]
[393594331,1762827043716,-478.44322026,0.000357,120]
[393594332,1762827043725,-774.0,0.000358,2]
[393594333,1762827043734,-492.0,0.000358,2]
[393594334,1762827043743,-315.15992962,0.00036,120]
[393594335,1762827043753,-1322.87332282,0.00036,120]
[393594336,1762827043762,-396.71115315,0.00036,120]
[393594337,1762827043771,-2498.62,0.00036051,2]
[393594338,1762827043780,-157.79206075,0.00036057,15]
[393594339,1762827043789,-12664.89485764,0.00036139,3]
[393594340,1762827043811,-339.14895506,0.00036139,3]
[393594341,1762827043820,-14897.7370127,0.00036139,3]
[393594342,1762827043829,-5000.0,0.00036149,2]
[393594343,1762827043838,-5000.0,0.00036149,2]
[393594344,1762827043849,-5000.0,0.00036149,2]
[393594345,1762827043858,-5000.0,0.00036149,2]
[393594346,1762827043868,-1671.73608,0.0003619,2]
[393594347,1762827043882,-2501.83,0.00036297,2]
[393594348,1762827043897,-195.50802629,0.00036438,120]
[393594349,1762827043907,-13004.0438127,0.00036455,4]
[393594350,1762827043917,-14897.7370127,0.00036455,4]
[393594351,1762827043926,-17751.91,0.00036465,2]
[393594352,1762827043935,-201.45501085,0.000365,120]
[393594353,1762827043944,-655.85,0.00036621,2]
[393594354,1762827043953,-774.77,0.000367,30]
[393594355,1762827043962,-162.83,0.000367,14]
[393594356,1762827043972,-166.66,0.00036726,2]
[393594357,1762827043982,-2501.83,0.00036862,2]
[393594358,1762827043995,-5000.0,0.00036909,2]
[393594359,1762827044005,-153.19916793,0.00036954,2]
[393594360,1762827044014,-154.36,0.00037143,2]
[393594361,1762827044023,-11491.31228929,0.00037174,2]
[393594362,1762827044034,-1671.73607,0.0003719,2]
[393594363,1762827044043,-181.62923606,0.000372,120]
[393594364,1762827044053,-262.29,0.00037671,120]
[393594365,1762827044062,-14897.7370127,0.00037713,4]
[393594366,1762827044072,-153.0,0.00037758,2]
[393594367,1762827044081,-153.0,0.00037758,2]
[393594368,1762827044091,-153.0,0.00037758,2]
[393594369,1762827044101,-153.0,0.00037758,2]
[393594370,1762827044111,-153.0,0.00037758,2]
[393594371,1762827044121,-153.0,0.00037758,2]
[393594372,1762827044129,-153.0,0.00037758,2]
[393594373,1762827044139,-153.0,0.00037758,2]
[393594374,1762827044148,-153.0,0.00037758,2]
[393594375,1762827044157,-153.0,0.00037758,2]
[393594376,1762827044166,-153.0,0.00037758,2]
[393594377,1762827044175,-153.0,0.00037758,2]
[393594378,1762827044184,-1071.87,0.0003788,30]
[393594379,1762827044193,-2000.0,0.00038,2]
[393594380,1762827044202,-2000.0,0.00038,2]
[393594381,1762827044211,-2000.0,0.00038,2]
[393594382,1762827044220,-2000.0,0.00038,2]
[393594383,1762827044229,-2000.0,0.00038,2]
[393594384,1762827044238,-2000.0,0.00038,2]
[393594385,1762827044247,-2000.0,0.00038,2]
[393594386,1762827044256,-2000.0,0.00038,2]
[393594387,1762827044266,-1395.08,0.00038068,2]
[393594388,1762827044275,-29795.4740253,0.00038346,4]
[393594389,1762827044284,-1178.71,0.00038356,2]
[393594390,1762827044293,-1178.71,0.00038356,2]
[393594391,1762827044302,-1178.71,0.00038356,2]
[393594392,1762827044311,-1178.71,0.00038356,2]
[393594393,1762827044320,-1178.71,0.00038356,2]
[393594394,1762827044329,-1178.71,0.00038356,2]
[393594395,1762827044338,-1178.71,0.00038356,2]
[393594396,1762827044348,-1178.71,0.00038356,2]
[393594397,1762827044358,-1178.71,0.00038356,2]
[393594398,1762827044368,-1178.71,0.00038356,2]
[393594399,1762827044377,-1178.71,0.00038356,2]
[393594400,1762827044386,-1178.71,0.00038356,2]
[393594401,1762827044396,-1178.71,0.00038356,2]
[393594402,1762827044405,-1178.71,0.00038356,2]
[393594403,1762827044414,-1178.71,0.00038356,2]
[393594404,1762827044424,-1178.71,0.00038356,2]
[393594405,1762827044434,-1178.71,0.00038356,2]
[393594406,1762827044444,-1178.71,0.00038356,2]
[393594407,1762827044453,-1178.71,0.00038356,2]
[393594408,1762827044462,-1178.71,0.00038356,2]
[393594409,1762827044472,-1178.71,0.00038356,2]
[393594410,1762827044481,-1178.71,0.00038356,2]
[393594411,1762827044491,-1178.71,0.00038356,2]
[393594412,1762827044500,-1178.81643746,0.00038356,2]
[393594413,1762827044509,-300.0,0.00038356,2]
[393594414,1762827044518,-300.0,0.00038356,2]
[393594415,1762827044534,-300.0,0.00038356,2]
[393594416,1762827044544,-300.0,0.00038356,2]
[393594417,1762827044554,-300.0,0.00038356,2]
[393594418,1762827044564,-300.0,0.00038356,2]
[393594419,1762827044575,-300.0,0.00038356,2]
[393594420,1762827044584,-300.0,0.00038356,2]
[393594421,1762827044594,-300.0,0.00038356,2]
[393594422,1762827044604,-300.0,0.00038356,2]
[393594423,1762827044614,-300.0,0.00038356,2]
[393594424,1762827044623,-300.0,0.00038356,2]
[393594425,1762827044632,-300.0,0.00038356,2]
[393594426,1762827044642,-333.74453563,0.00038356,2]
[393594427,1762827044651,-1000.0,0.00038356,2]
[393594428,1762827044660,-1000.0,0.00038356,2]
[393594429,1762827044669,-1000.0,0.00038356,2]
[393594430,1762827044679,-1000.0,0.00038356,2]
[393594431,1762827044688,-1000.0,0.00038356,2]
[393594432,1762827044697,-1000.0,0.00038356,2]
[393594433,1762827044706,-1000.0,0.00038356,2]
[393594434,1762827044715,-1000.0,0.00038356,2]
[393594435,1762827044725,-1000.0,0.00038356,2]
[393594436,1762827044734,-1000.0,0.00038356,2]
[393594437,1762827044744,-1000.0,0.00038356,2]
[393594438,1762827044753,-1000.0,0.00038356,2]
[393594439,1762827044762,-1084.87375295,0.00038356,2]
[393594440,1762827044771,-500.0,0.00038356,2]
[393594441,1762827044780,-500.0,0.00038356,2]
[393594442,1762827044790,-500.0,0.00038356,2]
[393594443,1762827044799,-500.0,0.00038356,2]
[393594444,1762827044808,-500.0,0.00038356,2]
[393594445,1762827044817,-500.0,0.00038356,2]
[393594446,1762827044827,-500.0,0.00038356,2]
[393594447,1762827044835,-500.0,0.00038356,2]
[393594448,1762827044845,-500.0,0.00038356,2]
[393594449,1762827044855,-500.0,0.00038356,2]
[393594450,1762827044864,-500.0,0.00038356,2]
[393594451,1762827044874,-500.0,0.00038356,2]
[393594452,1762827044883,-500.0,0.00038356,2]
[393594453,1762827044892,-500.0,0.00038356,2]
[393594454,1762827044901,-500.0,0.00038356,2]
[393594455,1762827044911,-500.0,0.00038356,2]
[393594456,1762827044920,-500.0,0.00038356,2]
[393594457,1762827044929,-500.0,0.00038356,2]
[393594458,1762827044938,-500.0,0.00038356,2]
[393594459,1762827044947,-500.0,0.00038356,2]
[393594460,1762827044956,-447.48315335,0.00038356,2]
[393594461,1762827044965,-500.0,0.00038356,2]
[393594462,1762827044974,-500.0,0.00038356,2]
[393594463,1762827044987,-613.39426511,0.00038356,2]
[393594464,1762827044996,-1374.16,0.00038356,2]
[393594465,1762827045006,-1374.16,0.00038356,2]
[393594466,1762827045016,-1374.16,0.00038356,2]
[393594467,1762827045027,-1374.16,0.00038356,2]
[393594468,1762827045037,-1374.16,0.00038356,2]
[393594469,1762827045047,-1374.16,0.00038356,2]
[393594470,1762827045058,-1374.16,0.00038356,2]
[393594471,1762827045068,-1374.16,0.00038356,2]
[393594472,1762827045080,-1374.16,0.00038356,2]
[393594473,1762827045091,-1374.16,0.00038356,2]
[393594474,1762827045106,-1374.16,0.00038356,2]
[393594475,1762827045118,-1374.16,0.00038356,2]
[393594476,1762827045129,-1374.16,0.00038356,2]
[393594477,1762827045141,-1374.16,0.00038356,2]
[393594478,1762827045154,-1374.16,0.00038356,2]
[393594479,1762827045166,-1374.16,0.00038356,2]
[393594480,1762827045176,-1374.16,0.00038356,2]
[393594481,1762827045186,-1374.16,0.00038356,2]
[393594482,1762827045198,-1374.16,0.00038356,2]
[393594483,1762827045209,-1374.16,0.00038356,2]
[393594484,1762827045219,-1374.16,0.00038356,2]
[393594485,1762827045228,-1374.16,0.00038356,2]
[393594486,1762827045238,-1374.16,0.00038356,2]
[393594487,1762827045247,-1374.19853077,0.00038356,2]
[393594488,1762827045257,-371.73,0.000384,120]
[393594489,1762827045266,-634.062,0.0003852,2]
[393594490,1762827045276,-2143.0,0.0003852,2]
[393594491,1762827045287,-774.77,0.000386,30]
[393594492,1762827045297,-162.83,0.000386,14]
[393594493,1762827045306,-1250.53,0.0003861,2]
[393594494,1762827045316,-300.0,0.00038681,91]
[393594495,1762827045326,-609.53180626,0.00038687,11]
[393594496,1762827045335,-609.53180621,0.00038687,11]
[393594497,1762827045344,-609.53180621,0.00038687,11]
[393594498,1762827045359,-609.53180621,0.00038687,11]
[393594499,1762827045368,-609.53180621,0.00038687,11]
[393594500,1762827045378,-609.53180621,0.00038687,11]
[393594501,1762827045388,-609.53180621,0.00038687,11]
[393594502,1762827045397,-609.53180621,0.00038687,11]
[393594503,1762827045406,-609.53180621,0.00038687,11]
[393594504,1762827045416,-609.53180621,0.00038687,11]
[393594505,1762827045425,-609.53180621,0.00038687,11]
[393594506,1762827045434,-609.53180621,0.00038687,11]
[393594507,1762827045443,-609.53180621,0.00038687,11]
[393594508,1762827045453,-500.0,0.00038688,2]
[393594509,1762827045463,-14897.7370127,0.00038698,4]
[393594510,1762827045473,-500.0,0.00038708,7]
[393594511,1762827045483,-500.0,0.00038708,7]
[393594512,1762827045493,-500.0,0.00038708,7]
[393594513,1762827045503,-500.0,0.00038708,7]
[393594514,1762827045512,-500.0,0.00038708,7]
[393594515,1762827045522,-500.0,0.00038708,7]
[393594516,1762827045531,-500.0,0.00038708,7]
[393594517,1762827045541,-500.0,0.00038708,7]
[393594518,1762827045550,-500.0,0.00038708,7]